[Event "White Rook U14 Final 2019"]
[Site "Sochi"]
[Date "2019.06.10"]
[Round "9.2"]
[White "Usov, Aleksandr E."]
[Black "Ismagilov, Igor"]
[Result "0-1"]
[ECO "B22"]
[WhiteElo "1812"]
[BlackElo "1803"]
[Annotator "NA"]
[PlyCount "94"]
[EventDate "2019.06.02"]
[EventCountry "RUS"]
[SourceTitle "playchess.com"]
[Source "ChessBase"]
[SourceQuality "1"]
[TimeControl "5400+30"]

1. e4 {[%emt 0:00:00]} c5 {[%emt 0:00:00]} 2. c3 {[%emt 0:00:00]} Nf6 {[%emt 0:00:00]} 3. e5 {[%emt 0:00:00]} Nd5 {[%emt 0:00:00]} 4. d4 {[%emt 0:00:00]} cxd4 {[%emt 0:00:00]} 5. Nf3 {[%emt 0:00:00]} Nc6 {[%emt 0:00:00]} 6. Bc4 {[%emt 0:00:00]} Nb6 {[%emt 0:00:00]} 7. Bb3 {[%emt 0:00:07]} d5 {[%emt 0:00:00]} 8. exd6 {[%emt 0:00:34]} Qxd6 {[%emt 0:00:00]} 9. Na3 {[%emt 0:06:26]} dxc3 {[%emt 0:38:39]} 10. Qxd6 {[%emt 0:00:09]} exd6 {[%emt 0:00:00]} 11. Nb5 {[%emt 0:00:00]} Kd8 {[%emt 0:03:14]} 12. Ng5 {[%emt 0:01:15]} Ne5 {[%emt 0:01:56]} 13. f4 {[%emt 0:01:00]} h6 {[%emt 0:43:49]} 14. fxe5 {[%emt 0:24:06]} hxg5 {[%emt 0:00:27]} 15. Bxg5+ {[%emt 0:00:38]} Be7 {[%emt 0:00:32]} 16. Bxe7+ {[%emt 0:00:35]} Kxe7 {[%emt 0:00:30]} 17. exd6+ {[%emt 0:00:43]} Kd8 {[%emt 0:00:29]} 18. bxc3 {[%emt 0:02:11]} f6 {[%emt 0:00:31]} 19. O-O-O {[%emt 0:00:36]} Bd7 {[%emt 0:00:29]} 20. Nc7 {[%emt 0:00:36]} Rc8 {[%emt 0:00:31]} 21. Rde1 {[%emt 0:00:36]} Rh5 {[%emt 0:00:30]} 22. Re7 {[%emt 0:00:41]} Rxc7 {[%emt 0:00:03]} 23. Rxg7 {[%emt 0:04:48]} Rxc3+ {[%emt 0:00:44]} 24. Kd2 {[%emt 0:56:29]} Rcc5 {[%emt 0:01:51]} 25. Rg8+ {[%emt 0:00:03]} Be8 {[%emt 0:00:03]} 26. Bf7 {[%emt 0:00:13]} Rhe5 {[%emt 0:00:09]} 27. h4 {[%emt 0:00:02]} Kd7 {[%emt 0:00:12]} 28. Bxe8+ {[%emt 0:00:04]} Rxe8 {[%emt 0:00:03]} 29. Rg7+ {[%emt 0:00:02]} Kxd6 {[%emt 0:00:03]} 30. Rxb7 {[%emt 0:00:06]} Rd5+ {[%emt 0:00:15]} 31. Kc1 {[%emt 0:00:01]} Re7 {[%emt 0:00:09]} 32. Rb8 {[%emt 0:00:04]} Rc5+ {[%emt 0:00:07]} 33. Kb1 {[%emt 0:00:03]} Rc8 {[%emt 0:00:02]} 34. Rd1+ {[%emt 0:00:03]} Kc7 {[%emt 0:00:03]} 35. Rxc8+ {[%emt 0:00:03]} Nxc8 {[%emt 0:00:16]} 36. Rf1 {[%emt 0:00:03]} Rg7 {[%emt 0:00:03]} 37. Rxf6 {[%emt 0:00:08]} Rxg2 {[%emt 0:00:05]} 38. h5 {[%emt 0:00:04]} Rh2 {[%emt 0:00:03]} 39. h6 {[%emt 0:00:01]} Ne7 {[%emt 0:00:06]} 40. a3 {[%emt 0:00:05]} a5 {[%emt 0:00:04]} 41. Re6 {[%emt 0:00:08]} Kd7 {[%emt 0:00:02]} 42. Rf6 {[%emt 0:00:03]} Kc7 {[%emt 0:00:12]} 43. Re6 {[%emt 0:00:03]} Nc6 {[%emt 0:00:02]} 44. Rg6 {[%emt 0:00:07]} Kb6 {[%emt 0:00:03]} 45. Kc1 {[%emt 0:00:03]} Kb5 {[%emt 0:00:03]} 46. Kd1 {[%emt 0:00:03]} a4 {[%emt 0:00:11]} 47. Ke1 {[%emt 0:00:08]} Nd4 {[%emt 0:00:09]} 0-1

[Event "White Rook U14 Final 2019"]
[Site "Sochi"]
[Date "2019.06.10"]
[Round "9.3"]
[White "Khodko, Yurii N."]
[Black "Saikin, Ilia"]
[Result "1/2-1/2"]
[ECO "B13"]
[WhiteElo "1727"]
[BlackElo "1641"]
[Annotator "NA"]
[PlyCount "104"]
[EventDate "2019.06.02"]
[EventCountry "RUS"]
[SourceTitle "playchess.com"]
[Source "ChessBase"]
[SourceQuality "1"]
[TimeControl "5400+30"]

1. e4 {[%emt 0:00:00]} c6 {[%emt 0:00:00]} 2. d4 {[%emt 0:00:00]} d5 {[%emt 0:00:00]} 3. exd5 {[%emt 0:00:00]} cxd5 {[%emt 0:00:00]} 4. c4 {[%emt 0:00:17]} Nc6 {[%emt 0:00:00]} 5. Nc3 {[%emt 0:01:41]} Nf6 {[%emt 0:00:00]} 6. Nf3 {[%emt 0:00:00]} Be6 {[%emt 0:00:00]} 7. c5 {[%emt 0:02:33]} a6 {[%emt 0:00:15]} 8. Be2 {[%emt 0:01:18]} g6 {[%emt 0:00:12]} 9. O-O {[%emt 0:00:43]} Bg7 {[%emt 0:00:04]} 10. Bf4 {[%emt 0:03:10]} O-O {[%emt 0:32:18]} 11. Na4 {[%emt 0:02:58]} Nd7 {[%emt 0:00:00]} 12. Qd2 {[%emt 0:00:00]} f6 {[%emt 0:00:00]} 13. Bh6 {[%emt 0:01:50]} Bf7 {[%emt 0:03:24]} 14. Bxg7 {[%emt 0:02:30]} Kxg7 {[%emt 0:00:04]} 15. Rad1 {[%emt 0:16:23]} Qc7 {[%emt 0:38:10]} 16. g3 {[%emt 0:00:00]} Rad8 {[%emt 0:00:00]} 17. Nh4 {[%emt 0:00:00]} e5 {[%emt 0:00:00]} 18. dxe5 {[%emt 0:00:00]} fxe5 {[%emt 0:00:00]} 19. f4 {[%emt 0:00:00]} e4 {[%emt 0:00:00]} 20. f5 {[%emt 0:00:00]} Qe5 {[%emt 0:00:00]} 21. Ng2 {[%emt 0:00:00]} d4 {[%emt 0:00:00]} 22. Rf4 {[%emt 0:04:32]} d3 {[%emt 0:03:33]} 23. Bf1 {[%emt 0:02:11]} Qd4+ {[%emt 0:11:57]} 24. Kh1 {[%emt 0:04:51]} g5 {[%emt 0:07:09]} 25. Rg4 {[%emt 0:01:24]} h6 {[%emt 0:00:24]} 26. Nc3 {[%emt 0:01:30]} Nf6 {[%emt 0:00:02]} 27. h3 {[%emt 0:06:53]} Nxg4 {[%emt 0:00:29]} 28. hxg4 {[%emt 0:02:53]} Ne5 {[%emt 0:00:44]} 29. Ne3 {[%emt 0:00:04]} Nc4 {[%emt 0:00:50]} 30. Nxc4 {[%emt 0:00:05]} Bxc4 {[%emt 0:02:40]} 31. Re1 {[%emt 0:01:21]} Rfe8 {[%emt 0:00:11]} 32. Re3 {[%emt 0:00:08]} Re5 {[%emt 0:00:53]} 33. Bg2 {[%emt 0:00:14]} Bd5 {[%emt 0:00:50]} 34. Kh2 {[%emt 0:00:38]} Rde8 {[%emt 0:00:04]} 35. Bf1 {[%emt 0:01:41]} Bc4 {[%emt 0:01:02]} 36. b4 {[%emt 0:02:12]} a5 {[%emt 0:01:20]} 37. Nd1 {[%emt 0:00:25]} axb4 {[%emt 0:00:26]} 38. Qxb4 {[%emt 0:00:59]} Qxc5 {[%emt 0:00:51]} 39. Qxb7+ {[%emt 0:00:15]} R8e7 {[%emt 0:00:24]} 40. Qb2 {[%emt 0:00:13]} Ra7 {[%emt 0:00:08]} 41. Kh3 {[%emt 0:00:24]} Rxa2 {[%emt 0:00:58]} 42. Qb8 {[%emt 0:03:34]} Re7 {[%emt 0:00:24]} 43. Bg2 {[%emt 0:02:58]} Re2 {[%emt 0:00:37]} 44. f6+ {[%emt 0:00:46]} Kxf6 {[%emt 0:00:26]} 45. Qf8+ {[%emt 0:00:40]} Ke5 {[%emt 0:00:15]} 46. Qh8+ {[%emt 0:00:23]} Kd5 {[%emt 0:00:48]} 47. Nc3+ {[%emt 0:05:26]} Kc6 {[%emt 0:00:24]} 48. Rxe4 {[%emt 0:00:16]} R2xe4 {[%emt 0:00:16]} 49. Nxe4 {[%emt 0:00:56]} Rxe4 {[%emt 0:00:32]} 50. Bxe4+ {[%emt 0:00:33]} Kb5 {[%emt 0:00:13]} 51. Qb2+ {[%emt 0:00:04]} Qb4 {[%emt 0:00:42]} 52. Qe5+ {[%emt 0:01:33]} Ka4 {[%emt 0:00:47]} 1/2-1/2

[Event "White Rook U14 Final 2019"]
[Site "Sochi"]
[Date "2019.06.10"]
[Round "9.4"]
[White "Krupnova, Anna"]
[Black "Loviagina, Dariana"]
[Result "1-0"]
[ECO "B22"]
[WhiteElo "1714"]
[BlackElo "1297"]
[Annotator "NA"]
[PlyCount "96"]
[EventDate "2019.06.02"]
[EventCountry "RUS"]
[SourceTitle "playchess.com"]
[Source "ChessBase"]
[SourceQuality "1"]
[TimeControl "5400+30"]

1. e4 {[%emt 0:00:00]} c5 {[%emt 0:00:00]} 2. Nf3 {[%emt 0:00:00]} a6 {[%emt 0:00:00]} 3. c3 {[%emt 0:00:00]} d5 {[%emt 0:00:00]} 4. exd5 {[%emt 0:00:00]} Qxd5 {[%emt 0:00:00]} 5. d4 {[%emt 0:00:04]} Nf6 {[%emt 0:00:10]} 6. Be3 {[%emt 0:00:54]} cxd4 {[%emt 0:00:22]} 7. cxd4 {[%emt 0:00:16]} e6 {[%emt 0:00:23]} 8. Nc3 {[%emt 0:00:17]} Qd6 {[%emt 0:00:52]} 9. Bd3 {[%emt 0:01:51]} Nc6 {[%emt 0:00:23]} 10. O-O {[%emt 0:01:01]} Be7 {[%emt 0:01:59]} 11. Rc1 {[%emt 0:27:31]} O-O {[%emt 0:07:54]} 12. a3 {[%emt 0:00:00]} Rd8 {[%emt 0:00:00]} 13. Ne4 {[%emt 0:00:00]} Nxe4 {[%emt 0:00:00]} 14. Bxe4 {[%emt 0:00:00]} Bf6 {[%emt 0:00:00]} 15. Qc2 {[%emt 0:02:20]} h6 {[%emt 0:02:23]} 16. Rfd1 {[%emt 0:04:07]} Ne7 {[%emt 0:16:32]} 17. Ne5 {[%emt 0:40:58]} Nd5 {[%emt 0:00:00]} 18. Nc4 {[%emt 0:00:00]} Qc7 {[%emt 0:00:00]} 19. Qb3 {[%emt 0:00:00]} Rb8 {[%emt 0:00:00]} 20. Bxd5 {[%emt 0:00:00]} exd5 {[%emt 0:00:00]} 21. Ne5 {[%emt 0:03:09]} Qd6 {[%emt 0:02:32]} 22. Bf4 {[%emt 0:00:37]} Bg5 {[%emt 0:00:41]} 23. Bxg5 {[%emt 0:00:41]} hxg5 {[%emt 0:02:28]} 24. Rc5 {[%emt 0:12:00]} Bf5 {[%emt 0:00:11]} 25. Qf3 {[%emt 0:01:17]} Qe6 {[%emt 0:00:59]} 26. h3 {[%emt 0:00:43]} Rd6 {[%emt 0:01:16]} 27. Rdc1 {[%emt 0:04:00]} Rbd8 {[%emt 0:09:36]} 28. Rc7 {[%emt 0:01:04]} Bg6 {[%emt 0:06:57]} 29. Rxb7 {[%emt 0:00:35]} Rb6 {[%emt 0:03:06]} 30. Rcc7 {[%emt 0:00:31]} Rxb7 {[%emt 0:02:33]} 31. Rxb7 {[%emt 0:00:29]} Rc8 {[%emt 0:00:43]} 32. Qb3 {[%emt 0:00:05]} Rc1+ {[%emt 0:01:00]} 33. Kh2 {[%emt 0:00:54]} Qd6 {[%emt 0:01:34]} 34. Qb6 {[%emt 0:00:05]} Qxb6 {[%emt 0:05:29]} 35. Rxb6 {[%emt 0:00:47]} Rc2 {[%emt 0:01:39]} 36. Nxg6 {[%emt 0:00:05]} fxg6 {[%emt 0:00:40]} 37. Kg3 {[%emt 0:00:46]} Rd2 {[%emt 0:00:08]} 38. Rxa6 {[%emt 0:00:28]} Rxb2 {[%emt 0:00:12]} 39. Rxg6 {[%emt 0:00:31]} Rb3+ {[%emt 0:00:19]} 40. f3 {[%emt 0:00:28]} Rxa3 {[%emt 0:00:06]} 41. Rxg5 {[%emt 0:00:35]} Ra5 {[%emt 0:00:08]} 42. Re5 {[%emt 0:00:04]} Kf7 {[%emt 0:00:14]} 43. Kf4 {[%emt 0:00:24]} Kf6 {[%emt 0:00:12]} 44. g4 {[%emt 0:00:16]} Rb5 {[%emt 0:00:17]} 45. h4 {[%emt 0:00:26]} g6 {[%emt 0:00:12]} 46. h5 {[%emt 0:00:12]} gxh5 {[%emt 0:00:07]} 47. Rxh5 {[%emt 0:01:46]} Kg6 {[%emt 0:00:34]} 48. Rf5 {[%emt 0:00:12]} Ra5 {[%emt 0:00:12]} 1-0

[Event "White Rook U14 Final 2019"]
[Site "Sochi"]
[Date "2019.06.10"]
[Round "9.5"]
[White "Tugstumur, Yesuntumur"]
[Black "Sargsyan, Gor K."]
[Result "1/2-1/2"]
[ECO "A01"]
[WhiteElo "2356"]
[BlackElo "1641"]
[Annotator "NA"]
[PlyCount "65"]
[EventDate "2019.06.02"]
[EventCountry "RUS"]
[SourceTitle "playchess.com"]
[Source "ChessBase"]
[SourceQuality "1"]
[TimeControl "5400+30"]

1. b3 {[%emt 0:00:00]} e5 {[%emt 0:00:00]} 2. Bb2 {[%emt 0:00:00]} Nc6 {[%emt 0:00:00]} 3. g3 {[%emt 0:00:00]} d5 {[%emt 0:00:00]} 4. Bg2 {[%emt 0:00:00]} g6 {[%emt 0:00:00]} 5. e3 {[%emt 0:00:29]} Bg7 {[%emt 0:00:09]} 6. Ne2 {[%emt 0:00:10]} Nf6 {[%emt 0:01:28]} 7. d3 {[%emt 0:01:10]} O-O {[%emt 0:00:15]} 8. O-O {[%emt 0:00:08]} Be6 {[%emt 0:04:20]} 9. c4 {[%emt 0:00:50]} Qd7 {[%emt 0:13:43]} 10. Nbc3 {[%emt 0:18:07]} d4 {[%emt 0:00:00]} 11. exd4 {[%emt 0:00:00]} Nxd4 {[%emt 0:00:00]} 12. Nxd4 {[%emt 0:00:00]} exd4 {[%emt 0:00:00]} 13. Ne2 {[%emt 0:00:00]} c5 {[%emt 0:00:00]} 14. Nf4 {[%emt 0:00:00]} Bf5 {[%emt 0:00:00]} 15. Re1 {[%emt 0:00:00]} Rae8 {[%emt 0:00:00]} 16. Qc2 {[%emt 0:00:00]} Ng4 {[%emt 0:08:57]} 17. Ba3 {[%emt 0:45:32]} b6 {[%emt 0:13:01]} 18. b4 {[%emt 0:00:00]} Qc8 {[%emt 0:00:00]} 19. bxc5 {[%emt 0:00:00]} bxc5 {[%emt 0:00:00]} 20. Nd5 {[%emt 0:00:00]} Ne5 {[%emt 0:00:00]} 21. Qd2 {[%emt 0:00:00]} Nxd3 {[%emt 0:00:00]} 22. Rxe8 {[%emt 0:00:00]} Rxe8 {[%emt 0:00:00]} 23. g4 {[%emt 0:00:00]} Qa6 {[%emt 0:04:15]} 24. gxf5 {[%emt 0:03:33]} Qxa3 {[%emt 0:00:12]} 25. f6 {[%emt 0:03:43]} Bf8 {[%emt 0:00:05]} 26. Rb1 {[%emt 0:00:04]} Ne5 {[%emt 0:00:36]} 27. Rb3 {[%emt 0:01:02]} Nxc4 {[%emt 0:00:29]} 28. Qf4 {[%emt 0:08:29]} Qa6 {[%emt 0:01:38]} 29. Bf1 {[%emt 0:01:47]} Bd6 {[%emt 0:01:01]} 30. Qc1 {[%emt 0:01:24]} Bxh2+ {[%emt 0:07:32]} 31. Kh1 {[%emt 0:03:01]} Qc6 {[%emt 0:06:48]} 32. Qh6 {[%emt 0:00:23]} Qxd5+ {[%emt 0:03:03]} 33. f3 {[%emt 0:01:23]} 1/2-1/2

[Event "White Rook U14 Final 2019"]
[Site "Sochi"]
[Date "2019.06.10"]
[Round "9.6"]
[White "Grigoryan, Hayk V."]
[Black "Munkhzul, Davaakhuu"]
[Result "0-1"]
[ECO "B45"]
[WhiteElo "1423"]
[BlackElo "1806"]
[Annotator "NA"]
[PlyCount "89"]
[EventDate "2019.06.02"]
[EventCountry "RUS"]
[SourceTitle "playchess.com"]
[Source "ChessBase"]
[SourceQuality "1"]
[TimeControl "5400+30"]

1. e4 {[%emt 0:00:00]} c5 {[%emt 0:00:00]} 2. Nf3 {[%emt 0:00:00]} e6 {[%emt 0:00:00]} 3. d4 {[%emt 0:00:00]} cxd4 {[%emt 0:00:00]} 4. Nxd4 {[%emt 0:00:00]} Nc6 {[%emt 0:00:00]} 5. Nc3 {[%emt 0:00:00]} Nf6 {[%emt 0:00:00]} 6. Nxc6 {[%emt 0:00:00]} bxc6 {[%emt 0:00:00]} 7. e5 {[%emt 0:00:00]} Nd5 {[%emt 0:00:00]} 8. Ne4 {[%emt 0:00:00]} Qc7 {[%emt 0:00:00]} 9. f4 {[%emt 0:00:00]} Qb6 {[%emt 0:00:01]} 10. c4 {[%emt 0:00:18]} Bb4+ {[%emt 0:00:23]} 11. Ke2 {[%emt 0:00:04]} f5 {[%emt 0:00:00]} 12. exf6 {[%emt 0:00:04]} Nxf6 {[%emt 0:00:45]} 13. Nxf6+ {[%emt 0:00:01]} gxf6 {[%emt 0:00:06]} 14. Be3 {[%emt 0:00:08]} Bc5 {[%emt 0:01:40]} 15. Bxc5 {[%emt 0:24:02]} Qxc5 {[%emt 0:16:55]} 16. Qd3 {[%emt 0:00:00]} Ba6 {[%emt 0:00:00]} 17. Kf3 {[%emt 0:00:00]} O-O-O {[%emt 0:00:00]} 18. Qe3 {[%emt 0:00:00]} Qxe3+ {[%emt 0:08:13]} 19. Kxe3 {[%emt 0:01:54]} d5 {[%emt 0:14:32]} 20. Rc1 {[%emt 0:34:12]} d4+ {[%emt 0:00:00]} 21. Kd2 {[%emt 0:00:00]} c5 {[%emt 0:00:00]} 22. Bd3 {[%emt 0:00:00]} Bb7 {[%emt 0:00:00]} 23. Rhe1 {[%emt 0:00:00]} Rde8 {[%emt 0:00:00]} 24. Re2 {[%emt 0:00:00]} Kd7 {[%emt 0:00:00]} 25. Rce1 {[%emt 0:00:00]} Kd6 {[%emt 0:00:00]} 26. Rf2 {[%emt 0:00:00]} h6 {[%emt 0:00:00]} 27. Bg6 {[%emt 0:00:00]} Re7 {[%emt 0:00:00]} 28. h4 {[%emt 0:00:00]} h5 {[%emt 0:00:00]} 29. f5 {[%emt 0:00:00]} e5 {[%emt 0:00:00]} 30. g3 {[%emt 0:00:00]} a5 {[%emt 0:00:00]} 31. Rc1 {[%emt 0:06:00]} Bc6 {[%emt 0:08:30]} 32. b3 {[%emt 0:08:47]} Rg7 {[%emt 0:10:01]} 33. Rcf1 {[%emt 0:15:36]} Rb7 {[%emt 0:05:27]} 34. Rb1 {[%emt 0:03:42]} e4 {[%emt 0:01:42]} 35. Rf4 {[%emt 0:00:51]} Ke5 {[%emt 0:00:36]} 36. Kc2 {[%emt 0:01:45]} e3 {[%emt 0:02:50]} 37. Kd3 {[%emt 0:00:14]} a4 {[%emt 0:00:41]} 38. Rb2 {[%emt 0:04:20]} axb3 {[%emt 0:02:01]} 39. axb3 {[%emt 0:02:20]} Ra7 {[%emt 0:02:16]} 40. b4 {[%emt 0:00:44]} Ra3+ {[%emt 0:00:00]} 41. Ke2 {[%emt 0:00:00]} cxb4 {[%emt 0:01:18]} 42. Bf7 {[%emt 0:01:04]} b3 {[%emt 0:00:00]} 43. Kd3 {[%emt 0:00:29]} Ra2 {[%emt 0:01:55]} 44. Rxa2 {[%emt 0:02:01]} bxa2 {[%emt 0:00:00]} 45. Rf1 {[%emt 0:00:41]} 0-1

[Event "White Rook U14 Final 2019"]
[Site "Sochi"]
[Date "2019.06.10"]
[Round "9.7"]
[White "Aldar Burentegsh"]
[Black "Hovhannisyan, Artyom"]
[Result "1/2-1/2"]
[ECO "C50"]
[WhiteElo "1812"]
[BlackElo "1458"]
[Annotator "NA"]
[PlyCount "119"]
[EventDate "2019.06.02"]
[EventCountry "RUS"]
[SourceTitle "playchess.com"]
[Source "ChessBase"]
[SourceQuality "1"]
[TimeControl "5400+30"]

1. e4 {[%emt 0:00:00]} e5 {[%emt 0:00:07]} 2. Nf3 {[%emt 0:00:08]} Nc6 {[%emt 0:00:08]} 3. Bc4 {[%emt 0:00:27]} Bc5 {[%emt 0:00:00]} 4. Nc3 {[%emt 0:00:00]} Nf6 {[%emt 0:01:01]} 5. O-O {[%emt 0:00:00]} O-O {[%emt 0:00:17]} 6. d3 {[%emt 0:00:42]} h6 {[%emt 0:01:50]} 7. Be3 {[%emt 0:01:38]} Bb6 {[%emt 0:00:41]} 8. h3 {[%emt 0:00:51]} d6 {[%emt 0:00:54]} 9. Qd2 {[%emt 0:00:58]} Be6 {[%emt 0:02:13]} 10. Bb3 {[%emt 0:00:00]} Qd7 {[%emt 0:36:12]} 11. Rad1 {[%emt 0:00:00]} Rad8 {[%emt 0:00:00]} 12. d4 {[%emt 0:00:00]} exd4 {[%emt 0:00:00]} 13. Nxd4 {[%emt 0:00:01]} Nxd4 {[%emt 0:00:00]} 14. Bxd4 {[%emt 0:00:00]} Bxd4 {[%emt 0:00:00]} 15. Qxd4 {[%emt 0:00:00]} Bxb3 {[%emt 0:00:00]} 16. axb3 {[%emt 0:00:00]} c5 {[%emt 0:00:00]} 17. Qe3 {[%emt 0:00:00]} Rfe8 {[%emt 0:00:00]} 18. Rfe1 {[%emt 0:00:00]} Qc6 {[%emt 0:00:00]} 19. Qd3 {[%emt 0:00:00]} a6 {[%emt 0:00:00]} 20. f4 {[%emt 0:00:00]} b5 {[%emt 0:00:00]} 21. Qf3 {[%emt 0:00:00]} Nd7 {[%emt 0:00:00]} 22. Nd5 {[%emt 0:00:24]} Nb6 {[%emt 0:00:13]} 23. f5 {[%emt 0:00:21]} Nxd5 {[%emt 0:06:28]} 24. exd5 {[%emt 0:57:23]} Qd7 {[%emt 0:00:00]} 25. f6 {[%emt 0:00:00]} g6 {[%emt 0:00:00]} 26. Qf4 {[%emt 0:00:00]} Kh7 {[%emt 0:00:00]} 27. Rxe8 {[%emt 0:00:00]} Rxe8 {[%emt 0:00:00]} 28. Ra1 {[%emt 0:00:00]} Re5 {[%emt 0:00:00]} 29. Rxa6 {[%emt 0:00:00]} Rxd5 {[%emt 0:00:00]} 30. Ra8 {[%emt 0:00:00]} g5 {[%emt 0:00:00]} 31. Qe4+ {[%emt 0:00:00]} Qf5 {[%emt 0:00:00]} 32. Rh8+ {[%emt 0:00:00]} Kg6 {[%emt 0:00:00]} 33. Rg8+ {[%emt 0:00:00]} Kxf6 {[%emt 0:00:00]} 34. Qe2 {[%emt 0:00:00]} Qf4 {[%emt 0:00:00]} 35. Re8 {[%emt 0:00:00]} Re5 {[%emt 0:00:00]} 36. Rxe5 {[%emt 0:00:00]} Qxe5 {[%emt 0:00:00]} 37. Qf3+ {[%emt 0:07:02]} Ke6 {[%emt 0:02:31]} 38. c3 {[%emt 0:03:14]} d5 {[%emt 0:01:50]} 39. Qh5 {[%emt 0:03:57]} d4 {[%emt 0:01:31]} 40. Qxh6+ {[%emt 0:03:24]} f6 {[%emt 0:00:08]} 41. Qf8 {[%emt 0:04:07]} dxc3 {[%emt 0:00:26]} 42. bxc3 {[%emt 0:00:07]} Qxc3 {[%emt 0:00:26]} 43. Qe8+ {[%emt 0:00:07]} Kd5 {[%emt 0:00:06]} 44. Qxb5 {[%emt 0:01:58]} Kd4 {[%emt 0:00:12]} 45. Qd7+ {[%emt 0:01:23]} Ke4 {[%emt 0:00:10]} 46. Qd1 {[%emt 0:02:47]} Qd4+ {[%emt 0:00:24]} 47. Qxd4+ {[%emt 0:03:07]} Kxd4 {[%emt 0:00:06]} 48. g3 {[%emt 0:01:12]} Ke4 {[%emt 0:00:09]} 49. Kf2 {[%emt 0:00:19]} f5 {[%emt 0:00:11]} 50. Ke2 {[%emt 0:00:48]} f4 {[%emt 0:00:05]} 51. h4 {[%emt 0:12:32]} f3+ {[%emt 0:00:42]} 52. Kf1 {[%emt 0:00:13]} g4 {[%emt 0:00:02]} 53. Kf2 {[%emt 0:00:06]} Kf5 {[%emt 0:00:31]} 54. Ke3 {[%emt 0:00:07]} Ke5 {[%emt 0:00:05]} 55. Kd3 {[%emt 0:00:07]} Kf5 {[%emt 0:00:07]} 56. Ke3 {[%emt 0:00:07]} Kf6 {[%emt 0:00:24]} 57. Kf2 {[%emt 0:00:19]} Kg6 {[%emt 0:00:05]} 58. Ke3 {[%emt 0:00:04]} Kf5 {[%emt 0:00:05]} 59. Kd3 {[%emt 0:00:05]} Kg6 {[%emt 0:01:01]} 60. Ke3 {[%emt 0:00:12]} 1/2-1/2

[Event "White Rook U14 Final 2019"]
[Site "Sochi"]
[Date "2019.06.10"]
[Round "9.8"]
[White "Hakobyan, Astghik"]
[Black "Unurzul, Davaakhuu"]
[Result "1/2-1/2"]
[ECO "C47"]
[WhiteElo "1791"]
[BlackElo "1442"]
[Annotator "NA"]
[PlyCount "122"]
[EventDate "2019.06.02"]
[EventCountry "RUS"]
[SourceTitle "playchess.com"]
[Source "ChessBase"]
[SourceQuality "1"]
[TimeControl "5400+30"]

1. e4 {[%emt 0:00:00]} e5 {[%emt 0:00:00]} 2. Nf3 {[%emt 0:00:00]} Nc6 {[%emt 0:00:00]} 3. d4 {[%emt 0:00:00]} exd4 {[%emt 0:00:00]} 4. Nxd4 {[%emt 0:00:00]} Nf6 {[%emt 0:00:00]} 5. Nc3 {[%emt 0:00:00]} Bb4 {[%emt 0:00:23]} 6. Nxc6 {[%emt 0:00:00]} bxc6 {[%emt 0:00:12]} 7. Bd3 {[%emt 0:00:00]} O-O {[%emt 0:01:27]} 8. O-O {[%emt 0:00:00]} d6 {[%emt 0:03:07]} 9. h3 {[%emt 0:00:37]} Re8 {[%emt 0:01:55]} 10. Qf3 {[%emt 0:00:26]} h6 {[%emt 0:16:29]} 11. Bd2 {[%emt 0:16:45]} Bb7 {[%emt 0:00:00]} 12. Qg3 {[%emt 0:00:00]} Kh8 {[%emt 0:00:00]} 13. Rae1 {[%emt 0:00:00]} Qd7 {[%emt 0:00:00]} 14. Qh4 {[%emt 0:00:00]} Nh7 {[%emt 0:00:00]} 15. e5 {[%emt 0:00:00]} Bxc3 {[%emt 0:00:00]} 16. Bxc3 {[%emt 0:00:00]} dxe5 {[%emt 0:00:00]} 17. f4 {[%emt 0:07:20]} c5 {[%emt 0:44:50]} 18. fxe5 {[%emt 0:09:10]} Qe7 {[%emt 0:00:00]} 19. Qh5 {[%emt 0:00:00]} Qg5 {[%emt 0:00:00]} 20. Qxg5 {[%emt 0:00:00]} Nxg5 {[%emt 0:00:00]} 21. h4 {[%emt 0:00:00]} Ne6 {[%emt 0:00:00]} 22. Rxf7 {[%emt 0:00:00]} Rf8 {[%emt 0:00:00]} 23. Ref1 {[%emt 0:00:00]} Bd5 {[%emt 0:00:00]} 24. Rxf8+ {[%emt 0:00:00]} Rxf8 {[%emt 0:00:00]} 25. Rxf8+ {[%emt 0:00:00]} Nxf8 {[%emt 0:00:00]} 26. Kf2 {[%emt 0:00:00]} Kg8 {[%emt 0:00:00]} 27. g4 {[%emt 0:00:00]} Kf7 {[%emt 0:00:00]} 28. Ke3 {[%emt 0:00:00]} g6 {[%emt 0:00:00]} 29. Be4 {[%emt 0:00:00]} Ke6 {[%emt 0:06:30]} 30. b3 {[%emt 0:07:41]} c6 {[%emt 0:00:16]} 31. Bb2 {[%emt 0:00:43]} Bxe4 {[%emt 0:01:38]} 32. Kxe4 {[%emt 0:00:34]} Nd7 {[%emt 0:00:08]} 33. c4 {[%emt 0:00:29]} a6 {[%emt 0:01:06]} 34. Bc3 {[%emt 0:02:31]} Nb6 {[%emt 0:01:51]} 35. Bd2 {[%emt 0:00:34]} Nd7 {[%emt 0:01:47]} 36. Bxh6 {[%emt 0:00:36]} Nxe5 {[%emt 0:00:00]} 37. Kf4 {[%emt 0:01:43]} Nd3+ {[%emt 0:02:35]} 38. Kg5 {[%emt 0:02:19]} Kf7 {[%emt 0:00:11]} 39. h5 {[%emt 0:00:45]} gxh5 {[%emt 0:00:21]} 40. Kxh5 {[%emt 0:00:05]} Nb4 {[%emt 0:00:17]} 41. a3 {[%emt 0:02:24]} Nc2 {[%emt 0:00:20]} 42. Bc1 {[%emt 0:01:10]} Nd4 {[%emt 0:02:56]} 43. b4 {[%emt 0:00:27]} Nb3 {[%emt 0:00:36]} 44. Be3 {[%emt 0:01:27]} cxb4 {[%emt 0:00:53]} 45. axb4 {[%emt 0:00:08]} Na1 {[%emt 0:00:16]} 46. Kh6 {[%emt 0:00:33]} Nc2 {[%emt 0:00:00]} 47. Bc5 {[%emt 0:00:40]} Kg8 {[%emt 0:00:00]} 48. Kg6 {[%emt 0:00:11]} Ne1 {[%emt 0:00:50]} 49. Kf6 {[%emt 0:00:32]} Nd3 {[%emt 0:00:15]} 50. Ke6 {[%emt 0:04:59]} a5 {[%emt 0:03:06]} 51. bxa5 {[%emt 0:00:19]} Nxc5+ {[%emt 0:00:00]} 52. Kf6 {[%emt 0:00:38]} Nd7+ {[%emt 0:00:38]} 53. Kf5 {[%emt 0:05:06]} Nc5 {[%emt 0:00:36]} 54. Kg6 {[%emt 0:00:37]} Na6 {[%emt 0:00:00]} 55. Kf6 {[%emt 0:05:22]} Nc5 {[%emt 0:00:25]} 56. Ke5 {[%emt 0:00:04]} Kf7 {[%emt 0:00:43]} 57. Kf5 {[%emt 0:01:03]} Kg7 {[%emt 0:00:00]} 58. g5 {[%emt 0:00:11]} Kf7 {[%emt 0:00:00]} 59. g6+ {[%emt 0:00:29]} Kg7 {[%emt 0:00:00]} 60. Kg5 {[%emt 0:00:05]} Na6 {[%emt 0:00:05]} 61. Kf5 {[%emt 0:00:45]} Nc5 {[%emt 0:00:20]} 1/2-1/2